[Event "AI Cup Div-3 2023"]
[Site "Online"]
[Date "2023.09.29"]
[Round "6.2"]
[White "Sevian, Samuel"]
[Black "Mamedov, Rauf"]
[Result "1/2-1/2"]
[Annotator "TA"]
[ECO "D14"]
[WhiteElo "2698"]
[BlackElo "2640"]
[PlyCount "171"]
[EventDate "2023.09.18"]
[EventType "k.o."]
[EventCountry "NET"]
[SourceTitle "playchess.com"]
[Source "ChessBase"]
[SourceQuality "1"]
[TimeControl "900+3"]

{[%evp 20,171,11,11,11,11,15,9,14,8,10,8,6,6,6,8,17,22,46,23,23,22,54,54,54,54,54,54,55,47,47,62,91,91,99,91,99,99,99,91,92,92,92,92,92,83,92,89,86,50,83,0,58,56,99,99,80,84,100,74,100,109,107,107,103,89,103,100,117,112,116,113,111,102,101,0,110,33,98,98,96,62,100,99,104,87,95,81,95,94,90,90,197,201,201,201,361,360,333,327,398,396,398,408,422,155,155,48,42,0,28,28,28,28,28,28,28,22,22,22,22,22,22,22,28,22,22,22,22,22,22,22,22,22,22,0,0,0,28,22,28,28,28,32,39,22,22,22,22,0,22,0,22,0]} 1. Nf3 {[%emt 0:00:03]} c5 {[%emt 0:00:04]} 2. c3 {[%emt 0:00:04]} Nf6 {[%emt 0:00:37]} 3. d4 {[%emt 0:00:01]} cxd4 {[%emt 0:00:01]} 4. cxd4 {[%emt 0:00:01]} d5 {[%emt 0:00:07]} 5. Nc3 {[%emt 0:00:01]} Nc6 {[%emt 0:00:01]} 6. Bf4 {[%emt 0:00:01]} Bf5 {[%emt 0:00:02]} 7. e3 {[%emt 0:00:19]} e6 {[%emt 0:00:02]} 8. Qb3 {[%emt 0:00:37]} Bb4 {[%emt 0:00:03]} 9. Bb5 {[%emt 0:02:05]} O-O {[%emt 0:00:08]} 10. Bxc6 $1 {[%emt 0:00:15][%mdl 4] is currently scoring better than 10.0-0.} Bxc3+ {[%emt 0:00:03]} 11. Qxc3 {[%emt 0:00:01]} Rc8 {[%emt 0:00:53][%mdl 64] [#] Pin. D14: Slav Defence: Exchange variation with ...Bf5.} 12. Ne5 $1 {[%emt 0:00:01][%cal Oe1g1]} Ng4 {[%emt 0:00:54]} 13. Nxg4 {[%emt 0:00:07]} Bxg4 {[%emt 0:00:03] [#]} 14. Qb4 $1 {[%emt 0:00:01]} Rxc6 {[%emt 0:00:04] Black is weak on the dark squares} 15. Qxb7 {[%emt 0:00:03]} Qc8 {[%emt 0:00:53]} ({Don't play} 15... Rb6 16. Qxa7 Rxb2 17. O-O $16) 16. Qxc8 {[%emt 0:00:02]} Rfxc8 {[%emt 0:00:01]} 17. O-O {[%emt 0:00:01]} Be2 {[%emt 0:00:11]} 18. Rfe1 {[%emt 0:00:02]} Rc2 {[%emt 0:00:29]} 19. b3 {[%emt 0:00:23]} R8c6 {[%emt 0:00:06]} 20. Bb8 {[%emt 0:00:03] [#]} Ra6 $146 {[%emt 0:00:08]} ({Predecessor:} 20... h5 21. h4 Rb6 22. Bxa7 {½-½ Stremavicius,T (2476)-Nyzhnyk,I (2616) Pan American Intercollegiate-chT 2016 (3.1)}) 21. a4 {[%emt 0:01:05]} h5 {[%emt 0:01:16]} 22. h4 {[%emt 0:02:29]} Rb6 {[%emt 0:00:11][%csl LRb3,LRb8]} 23. Bxa7 {[%emt 0:00:06]} Rxb3 {[%emt 0:00:01]} 24. a5 {[%emt 0:00:28]} Rbb2 {[%emt 0:00:23]} 25. Reb1 {[%emt 0:00:29]} Rxb1+ {[%emt 0:00:01]} 26. Rxb1 $14 {[%emt 0:00:02][%mdl 4096] Endgame KRB-KRB} Ra2 {[%emt 0:00:01]} 27. Rb8+ {[%emt 0:00:33]} Kh7 {[%emt 0:00:01]} 28. Bb6 {[%emt 0:00:00]} Bc4 {[%emt 0:00:05]} 29. Rb7 {[%emt 0:00:40]} Kg6 {[%emt 0:00:03]} 30. Ra7 {[%emt 0:00:01]} Bd3 {[%emt 0:00:05]} 31. Bc5 {[%emt 0:00:05]} Bc4 {[%emt 0:00:01]} 32. Bd6 {[%emt 0:00:38]} Bd3 {[%emt 0:00:34]} 33. Be5 {[%emt 0:00:04]} Bc4 {[%emt 0:01:54]} 34. Bg3 {[%emt 0:00:17]} Bd3 {[%emt 0:00:06]} 35. Kh2 {[%emt 0:00:02]} (35. Bc7 $16) 35... Bc4 {[%emt 0:00:11]} (35... Bb5 $11) 36. Ra8 $1 {[%emt 0:00:01]} Bd3 {[%emt 0:00:05]} 37. Bd6 {[%emt 0:01:13]} Bc4 {[%emt 0:04:17]} 38. Kg3 {[%emt 0:00:04]} Bd3 {[%emt 0:00:01]} 39. Be5 {[%emt 0:00:25]} Bf1 {[%emt 0:00:55]} 40. Rg8 {[%emt 0:00:32]} f6 {[%emt 0:00:02]} 41. Bc7 {[%emt 0:00:01]} Bd3 {[%emt 0:00:22]} 42. Bb6 {[%emt 0:00:18]} Bc4 {[%emt 0:00:08]} 43. Rh8 {[%emt 0:00:50]} Bf1 {[%emt 0:00:03]} 44. Ra8 {[%emt 0:00:51]} Kf5 {[%emt 0:00:14]} 45. Rf8 {[%emt 0:00:01]} Kg6 {[%emt 0:00:03] Dodges Rf7} 46. Bc7 {[%emt 0:00:04]} Rc2 {[%emt 0:00:29]} 47. Bb6 {[%emt 0:00:10]} Ra2 $1 {[%emt 0:00:01]} 48. Bd8 {[%emt 0:00:07]} (48. Rc8 $16) 48... Rc2 {[%emt 0:00:07]} (48... Rb2 $1 $14) 49. Be7 $16 {[%emt 0:00:05]} Ra2 {[%emt 0:00:03]} 50. Bb4 {[%emt 0:00:59]} Rb2 {[%emt 0:00:12]} 51. Bc5 {[%emt 0:00:09]} Ra2 {[%emt 0:00:00]} 52. Ra8 {[%emt 0:00:01]} Kf5 {[%emt 0:00:02]} 53. Be7 {[%emt 0:00:01]} Bd3 {[%emt 0:00:16]} 54. Rh8 {[%emt 0:00:21]} Kg6 {[%emt 0:00:11]} 55. Bd8 {[%emt 0:00:01]} Bf1 {[%emt 0:00:02] [#]} (55... Bb5 $16) 56. Re8 $1 $18 {[%emt 0:00:02]} Kf5 {[%emt 0:00:13]} 57. Re7 {[%emt 0:00:00]} g5 $2 {[%emt 0:00:12]} (57... Kg6 {is a better defense.} 58. Rxe6 Bc4) 58. Rf7 {[%emt 0:00:03]} gxh4+ {[%emt 0:00:02]} 59. Kxh4 {[%emt 0:00:01]} Bxg2 {[%emt 0:00:03]} 60. Rxf6+ {[%emt 0:00:01]} ({Not} 60. Bxf6 Kg6 61. Rf8 (61. Rg7+ Kxf6 62. Rxg2 Rxa5 $16) 61... Rxf2 $16) 60... Ke4 {[%emt 0:00:00]} 61. Rxe6+ {[%emt 0:00:05]} Kd3 {[%emt 0:00:03]} 62. Kxh5 $2 {[%emt 0:00:15]} (62. f4 $18 {and White stays clearly on top.}) 62... Rxf2 $16 {[%emt 0:00:01]} 63. a6 {[%emt 0:00:02]} (63. Kg5 $16) 63... Ra2 $14 {[%emt 0:00:01]} 64. Rc6 {[%emt 0:00:08]} Bf1 {[%emt 0:00:06]} 65. Bg5 {[%emt 0:00:11]} Ke4 {[%emt 0:00:05]} 66. Re6+ {[%emt 0:00:01]} Kf3 {[%emt 0:00:03]} 67. Rf6+ {[%emt 0:00:03]} Kg2 {[%emt 0:00:00]} 68. Bh4 {[%emt 0:00:05]} Rxa6 {[%emt 0:00:06]} 69. Rf2+ {[%emt 0:00:01]} Kg1 {[%emt 0:00:00]} 70. Rd2 {[%emt 0:00:01]} Re6 {[%emt 0:00:12]} 71. Bg3 {[%emt 0:00:03]} Re4 {[%emt 0:00:02]} 72. Bf4 {[%emt 0:00:01]} Bg2 {[%emt 0:00:02]} 73. Kg4 {[%emt 0:00:01]} Re8 {[%emt 0:00:03]} 74. Be5 {[%emt 0:00:06]} Rg8+ {[%emt 0:00:01]} 75. Kf5 {[%emt 0:00:04]} Be4+ {[%emt 0:00:01]} 76. Ke6 {[%emt 0:00:00]} Rg6+ {[%emt 0:00:02]} 77. Bf6 {[%emt 0:00:02]} Rg3 {[%emt 0:00:03]} 78. Bh4 {[%emt 0:00:03]} Rf3 {[%emt 0:00:01]} 79. Bg5 {[%emt 0:00:03]} Kf1 {[%emt 0:00:01]} 80. Bf4 {[%emt 0:00:02] Hoping for Rh2.} Rf2 {[%emt 0:00:03]} 81. Rd1+ {[%emt 0:00:03]} Kg2 {[%emt 0:00:06]} 82. Ke5 {[%emt 0:00:03]} Rf1 {[%emt 0:00:02] The position is equal.} 83. Rd2+ {[%emt 0:00:03]} Rf2 {[%emt 0:00:01]} 84. Rd1 {[%emt 0:00:00]} Rf1 {[%emt 0:00:01]} 85. Rd2+ {[%emt 0:00:01]} Rf2 {[%emt 0:00:00]} 86. Rd1 {[%emt 0:00:00] Black defended with fortune.   Weighted Error Value: White=0.08 (flawless) /Black=0.17 (very precise)} 1/2-1/2

[Event "AI Cup Div-3 2023"]
[Site "Online"]
[Date "2023.09.29"]
[Round "6.3"]
[White "Mamedov, Rauf"]
[Black "Sevian, Samuel"]
[Result "1/2-1/2"]
[Annotator "ChessBase"]
[ECO "C77"]
[WhiteElo "2640"]
[BlackElo "2698"]
[PlyCount "38"]
[EventDate "2023.09.18"]
[EventType "k.o."]
[EventCountry "NET"]
[SourceTitle "playchess.com"]
[Source "ChessBase"]
[SourceQuality "1"]
[TimeControl "900+3"]

1. e4 {[%emt 0:00:03]} e5 {[%emt 0:00:04]} 2. Nf3 {[%emt 0:00:02]} Nc6 {[%emt 0:00:00]} 3. Bb5 {[%emt 0:00:01]} a6 {[%emt 0:00:01]} 4. Ba4 {[%emt 0:00:01]} Nf6 {[%emt 0:00:00]} 5. Nc3 {[%emt 0:00:02]} Bc5 {[%emt 0:00:02]} 6. d3 {[%emt 0:00:06]} d6 {[%emt 0:00:00]} 7. h3 {[%emt 0:00:18]} h6 {[%emt 0:00:12]} 8. a3 {[%emt 0:00:02]} b5 {[%emt 0:01:40]} 9. Bb3 {[%emt 0:00:03]} Nd4 {[%emt 0:00:00]} 10. Nxd4 {[%emt 0:00:04]} Bxd4 {[%emt 0:00:00]} 11. Ne2 {[%emt 0:00:02]} Bb6 {[%emt 0:00:01]} 12. Ng3 {[%emt 0:00:01]} Be6 {[%emt 0:00:00]} 13. Qf3 {[%emt 0:00:20]} Bxb3 {[%emt 0:00:17]} 14. cxb3 {[%emt 0:00:03]} g6 {[%emt 0:00:00]} 15. O-O {[%emt 0:00:08]} Nd7 {[%emt 0:00:31]} 16. Be3 {[%emt 0:00:31]} Nc5 {[%emt 0:00:02]} 17. Qd1 {[%emt 0:01:36]} Ne6 {[%emt 0:01:49]} 18. Bxb6 {[%emt 0:00:17]} cxb6 {[%emt 0:00:01]} 19. Ne2 {[%emt 0:00:03]} d5 {[%emt 0:00:09]} 1/2-1/2

[Event "AI Cup Div-3 2023"]
[Site "Online"]
[Date "2023.09.29"]
[Round "6.4"]
[White "Sevian, Samuel"]
[Black "Mamedov, Rauf"]
[Result "1-0"]
[Annotator "ChessBase"]
[ECO "B07"]
[WhiteElo "2698"]
[BlackElo "2640"]
[PlyCount "83"]
[EventDate "2023.09.18"]
[EventType "k.o."]
[EventCountry "NET"]
[SourceTitle "playchess.com"]
[Source "ChessBase"]
[SourceQuality "1"]
[TimeControl "900+3"]

1. d4 {[%emt 0:00:07]} Nf6 {[%emt 0:00:08]} 2. Nf3 {[%emt 0:00:01]} g6 {[%emt 0:00:03]} 3. Nbd2 {[%emt 0:00:01]} d6 {[%emt 0:00:32]} 4. e4 {[%emt 0:00:01]} Bg7 {[%emt 0:00:01]} 5. Bb5+ {[%emt 0:00:01]} c6 {[%emt 0:00:07]} 6. Bc4 {[%emt 0:00:09]} O-O {[%emt 0:00:03]} 7. O-O {[%emt 0:00:04]} d5 {[%emt 0:00:56]} 8. exd5 {[%emt 0:00:02]} cxd5 {[%emt 0:00:01]} 9. Bb3 {[%emt 0:00:01]} Nc6 {[%emt 0:00:06]} 10. c3 {[%emt 0:00:01]} Bf5 {[%emt 0:00:02]} 11. Re1 {[%emt 0:00:16]} Rc8 {[%emt 0:00:27]} 12. Nf1 {[%emt 0:00:08]} Bg4 {[%emt 0:00:40]} 13. Ng3 {[%emt 0:00:52]} e6 {[%emt 0:00:26]} 14. h3 {[%emt 0:00:04]} Bxf3 {[%emt 0:00:02]} 15. Qxf3 {[%emt 0:00:00]} b5 {[%emt 0:00:08]} 16. h4 {[%emt 0:00:26]} Nd7 {[%emt 0:01:54]} 17. h5 {[%emt 0:00:19]} Qh4 {[%emt 0:00:55]} 18. Bf4 {[%emt 0:01:07]} Rfe8 {[%emt 0:01:07]} 19. Qe3 {[%emt 0:00:26]} Qd8 {[%emt 0:00:44]} 20. Rad1 {[%emt 0:00:57]} Nb6 {[%emt 0:00:06]} 21. Bh6 {[%emt 0:02:07]} Bh8 {[%emt 0:00:21]} 22. Qf4 {[%emt 0:00:31]} Nc4 {[%emt 0:00:11]} 23. Re2 {[%emt 0:00:35]} Nd6 {[%emt 0:04:57]} 24. Rde1 {[%emt 0:00:08]} Nc4 {[%emt 0:01:00]} 25. Bc2 {[%emt 0:01:03]} Qc7 {[%emt 0:00:22]} 26. Qg4 {[%emt 0:00:09]} Bg7 {[%emt 0:00:19]} 27. Bxg7 {[%emt 0:01:01]} Kxg7 {[%emt 0:00:01]} 28. hxg6 {[%emt 0:00:01]} hxg6 {[%emt 0:00:02]} 29. Nh5+ {[%emt 0:00:01]} Kf8 {[%emt 0:00:01]} 30. Nf6 {[%emt 0:00:00]} Kg7 {[%emt 0:00:32]} 31. Nxe8+ {[%emt 0:02:26]} Rxe8 {[%emt 0:00:02]} 32. Bxg6 {[%emt 0:00:00]} fxg6 {[%emt 0:00:08]} 33. Rxe6 {[%emt 0:00:01]} Rxe6 {[%emt 0:00:01]} 34. Rxe6 {[%emt 0:00:01]} Ne7 {[%emt 0:00:01]} 35. Qg5 {[%emt 0:00:00]} Kf7 {[%emt 0:00:02]} 36. Qf6+ {[%emt 0:00:01]} Ke8 {[%emt 0:00:01]} 37. Qxg6+ {[%emt 0:00:27]} Kd7 {[%emt 0:00:02]} 38. Qf7 {[%emt 0:00:09]} Qd8 {[%emt 0:00:01]} 39. Ra6 {[%emt 0:00:01]} Qc7 {[%emt 0:00:09]} 40. Rh6 {[%emt 0:00:49]} Nd6 {[%emt 0:00:09]} 41. Qe6+ {[%emt 0:00:00]} Kc6 {[%emt 0:00:06]} 42. Rh7 {[%emt 0:00:01]} 1-0

[Event "AI Cup Div-3 2023"]
[Site "Online"]
[Date "2023.09.29"]
[Round "7.1"]
[White "Mamedov, Rauf"]
[Black "Sevian, Samuel"]
[Result "1/2-1/2"]
[Annotator "ChessBase"]
[ECO "A29"]
[WhiteElo "2640"]
[BlackElo "2698"]
[PlyCount "159"]
[EventDate "2023.09.18"]
[EventType "k.o."]
[EventCountry "NET"]
[SourceTitle "playchess.com"]
[Source "ChessBase"]
[SourceQuality "1"]
[TimeControl "900+3"]

1. c4 {[%emt 0:00:03]} e5 {[%emt 0:00:04]} 2. g3 {[%emt 0:00:02]} Nf6 {[%emt 0:00:01]} 3. Bg2 {[%emt 0:00:01]} d5 {[%emt 0:00:01]} 4. cxd5 {[%emt 0:00:01]} Nxd5 {[%emt 0:00:00]} 5. Nf3 {[%emt 0:00:02]} Nc6 {[%emt 0:00:01]} 6. d3 {[%emt 0:00:00]} Be7 {[%emt 0:00:32]} 7. O-O {[%emt 0:00:03]} O-O {[%emt 0:00:01]} 8. Nc3 {[%emt 0:00:01]} Nb6 {[%emt 0:00:14]} 9. a3 {[%emt 0:00:02]} Be6 {[%emt 0:00:14]} 10. Be3 {[%emt 0:00:05]} Nd5 {[%emt 0:01:34]} 11. Nxd5 {[%emt 0:00:03]} Bxd5 {[%emt 0:00:00]} 12. Rc1 {[%emt 0:00:01]} Qd7 {[%emt 0:00:14]} 13. Qa4 {[%emt 0:00:21]} Rad8 {[%emt 0:00:20]} 14. Rfe1 {[%emt 0:01:51]} a6 {[%emt 0:00:16]} 15. Nd2 {[%emt 0:00:41]} Bxg2 {[%emt 0:01:08]} 16. Kxg2 {[%emt 0:00:02]} Nd4 {[%emt 0:00:19]} 17. Qxd7 {[%emt 0:00:12]} Rxd7 {[%emt 0:00:00]} 18. f4 {[%emt 0:01:06]} Nf5 {[%emt 0:01:38]} 19. Bf2 {[%emt 0:00:08]} exf4 {[%emt 0:00:01]} 20. gxf4 {[%emt 0:00:01]} Bf6 {[%emt 0:00:01]} 21. Ne4 {[%emt 0:01:09]} Bxb2 {[%emt 0:00:12]} 22. Rb1 {[%emt 0:00:01]} Bxa3 {[%emt 0:00:08]} 23. Rxb7 {[%emt 0:00:01]} Nd6 {[%emt 0:00:31]} 24. Rb3 {[%emt 0:00:56]} Nxe4 {[%emt 0:00:34]} 25. Rxa3 {[%emt 0:00:01]} Nxf2 {[%emt 0:00:01]} 26. Kxf2 {[%emt 0:00:01]} Ra8 {[%emt 0:00:07]} 27. Rc1 {[%emt 0:00:03]} f5 {[%emt 0:02:10]} 28. Rc6 {[%emt 0:00:07]} Rd6 {[%emt 0:00:33]} 29. Rxc7 {[%emt 0:00:02]} Rh6 {[%emt 0:00:01]} 30. Kg2 {[%emt 0:00:44]} Re8 {[%emt 0:00:22]} 31. Ra2 {[%emt 0:00:04]} Rg6+ {[%emt 0:00:15]} 32. Kf3 {[%emt 0:00:04]} Rh6 {[%emt 0:00:01]} 33. Rc5 {[%emt 0:01:38]} Rh3+ {[%emt 0:00:02]} 34. Kg2 {[%emt 0:00:06]} Rhe3 {[%emt 0:00:01]} 35. Kf1 {[%emt 0:01:28]} g6 {[%emt 0:00:02]} 36. Rc7 {[%emt 0:01:12]} Rh3 {[%emt 0:00:09]} 37. Rxa6 {[%emt 0:01:12]} Rxh2 {[%emt 0:00:02]} 38. Raa7 {[%emt 0:00:00]} Rhxe2 {[%emt 0:00:49]} 39. Rg7+ {[%emt 0:00:02]} Kh8 {[%emt 0:00:01]} 40. Rxh7+ {[%emt 0:00:01]} Kg8 {[%emt 0:00:01]} 41. Rag7+ {[%emt 0:01:02]} Kf8 {[%emt 0:00:02]} 42. Rf7+ {[%emt 0:00:00]} Kg8 {[%emt 0:00:00]} 43. Rhg7+ {[%emt 0:00:21]} Kh8 {[%emt 0:00:02]} 44. Rxg6 {[%emt 0:00:18]} Re1+ {[%emt 0:01:28]} 45. Kg2 {[%emt 0:00:06]} R8e2+ {[%emt 0:00:02]} 46. Kg3 {[%emt 0:00:14]} Re3+ {[%emt 0:01:10]} 47. Kh4 {[%emt 0:00:21]} Rxd3 {[%emt 0:00:08]} 48. Ra6 {[%emt 0:00:23]} Rg1 {[%emt 0:00:30]} 49. Ra8+ {[%emt 0:00:59]} Rg8 {[%emt 0:00:01]} 50. Rxg8+ {[%emt 0:00:01]} Kxg8 {[%emt 0:00:01]} 51. Rxf5 {[%emt 0:00:00]} Kg7 {[%emt 0:00:08]} 52. Kg4 {[%emt 0:00:04]} Kg6 {[%emt 0:00:09]} 53. Ra5 {[%emt 0:00:02]} Rd6 {[%emt 0:00:01]} 54. Rg5+ {[%emt 0:00:02]} Kf7 {[%emt 0:00:01]} 55. Rh5 {[%emt 0:00:02]} Rb6 {[%emt 0:00:12]} 56. Rf5+ {[%emt 0:00:05]} Kg6 {[%emt 0:00:03]} 57. Rd5 {[%emt 0:00:04]} Kf7 {[%emt 0:00:02]} 58. Kg5 {[%emt 0:00:02]} Ra6 {[%emt 0:00:01]} 59. Rd7+ {[%emt 0:00:04]} Kf8 {[%emt 0:00:01]} 60. Rh7 {[%emt 0:00:01]} Rb6 {[%emt 0:00:05]} 61. Rd7 {[%emt 0:00:05]} Ra6 {[%emt 0:00:03]} 62. Kf5 {[%emt 0:00:02]} Rb6 {[%emt 0:00:02]} 63. Ke5 {[%emt 0:00:01]} Ra6 {[%emt 0:00:01]} 64. f5 {[%emt 0:00:01]} Rb6 {[%emt 0:00:02]} 65. Rc7 {[%emt 0:00:04]} Ra6 {[%emt 0:00:00]} 66. Kf4 {[%emt 0:00:01]} Ra4+ {[%emt 0:00:02]} 67. Kg5 {[%emt 0:00:01]} Ra6 {[%emt 0:00:01]} 68. Rc4 {[%emt 0:00:01]} Kf7 {[%emt 0:00:01]} 69. Rh4 {[%emt 0:00:01]} Rb6 {[%emt 0:00:01]} 70. Rh7+ {[%emt 0:00:01]} Kf8 {[%emt 0:00:00]} 71. Rh6 {[%emt 0:00:03]} Rxh6 {[%emt 0:00:03]} 72. Kxh6 {[%emt 0:00:00]} Kf7 {[%emt 0:00:00]} 73. Kg5 {[%emt 0:00:01]} Kg7 {[%emt 0:00:01]} 74. f6+ {[%emt 0:00:00]} Kf7 {[%emt 0:00:00]} 75. Kf5 {[%emt 0:00:01]} Kf8 {[%emt 0:00:00]} 76. Ke5 {[%emt 0:00:00]} Kf7 {[%emt 0:00:01]} 77. Kf5 {[%emt 0:00:01]} Kf8 {[%emt 0:00:00]} 78. Ke6 {[%emt 0:00:00]} Ke8 {[%emt 0:00:01]} 79. f7+ {[%emt 0:00:00]} Kf8 {[%emt 0:00:01]} 80. Kf6 {[%emt 0:00:00]} 1/2-1/2

[Event "AI Cup Div-3 2023"]
[Site "Online"]
[Date "2023.09.29"]
[Round "7.2"]
[White "Sevian, Samuel"]
[Black "Mamedov, Rauf"]
[Result "1-0"]
[Annotator "TA"]
[ECO "B07"]
[WhiteElo "2698"]
[BlackElo "2640"]
[PlyCount "105"]
[EventDate "2023.09.18"]
[EventType "k.o."]
[EventCountry "NET"]
[SourceTitle "playchess.com"]
[Source "ChessBase"]
[SourceQuality "1"]
[TimeControl "900+3"]

{[%evp 19,105,15,18,5,13,6,21,11,24,14,13,5,25,16,33,25,21,25,26,-3,0,-50,-36,-60,9,8,10,10,21,-5,-6,-22,-20,-23,-13,-33,-20,-18,0,0,0,-3,-3,0,0,-10,0,0,0,0,6,0,16,0,4,-106,-107,-107,40,29,93,89,79,72,83,66,227,245,225,207,1097,1091,975,614,796,757,2214,2144,29991,29958,6973,6295,29976,29975,29975,29976,29972,29972]} 1. d4 {[%emt 0:00:09]} Nf6 {[%emt 0:00:05]} 2. Nf3 {[%emt 0:00:01]} g6 {[%emt 0:00:01]} 3. Nbd2 {[%emt 0:00:01]} Bg7 {[%emt 0:00:06]} 4. e4 {[%emt 0:00:01]} O-O {[%emt 0:00:48]} 5. Bd3 {[%emt 0:01:12]} d6 {[%emt 0:00:03]} 6. O-O {[%emt 0:00:02]} Nc6 {[%emt 0:00:01]} 7. c3 {[%emt 0:00:01]} e5 {[%emt 0:00:02]} 8. dxe5 {[%emt 0:00:00]} Nxe5 {[%emt 0:00:05]} 9. Nxe5 {[%emt 0:00:01]} dxe5 {[%emt 0:00:01]} 10. Nc4 {[%emt 0:00:00]} Qe7 {[%emt 0:00:15]} 11. a4 {[%emt 0:00:04] B07: Pirc Defence: Miscellaneous Systems.} Rd8 {[%emt 0:00:06]} 12. Qc2 {[%emt 0:00:21]} Nh5 {[%emt 0:00:03]} 13. Re1 {[%emt 0:00:02] The position is equal.} Be6 {[%emt 0:00:39] [#]} 14. Bf1 $146 {[%emt 0:00:19]} ({Predecessor:} 14. g3 Bg4 15. Be3 Rd7 16. Bf1 Qe6 17. Nd2 Rad8 18. f3 Rxd2 19. Bxd2 Bxf3 20. Bg2 {1-0 De Santis,A (2320)-Basener,W (2205) Budapest FS10 IM 1996 (8)}) 14... Nf4 {[%emt 0:00:12]} 15. Be3 {[%emt 0:00:27]} h5 {[%emt 0:01:09]} 16. Na5 {[%emt 0:00:36]} c6 {[%emt 0:01:13]} 17. Rad1 {[%emt 0:00:02]} h4 {[%emt 0:01:31]} 18. h3 {[%emt 0:00:51]} Qc7 {[%emt 0:00:17] [#] Hoping for ...Rxd1.} 19. b4 {[%emt 0:00:04]} c5 {[%emt 0:00:26] aiming for ...cxb4.} 20. Nc4 {[%emt 0:01:58]} ({White should play} 20. Rxd8+ $1 $11 Rxd8 21. Nc4) 20... cxb4 $15 {[%emt 0:00:43]} 21. cxb4 {[%emt 0:00:00]} b6 {[%emt 0:00:09]} (21... Rac8 $1 $15) 22. Rc1 $11 {[%emt 0:01:08]} Rac8 {[%emt 0:01:05]} 23. Qb1 {[%emt 0:00:05][%cal Oc4b6]} Qe7 {[%emt 0:00:17]} 24. Kh1 {[%emt 0:01:44]} g5 {[%emt 0:00:27]} 25. f3 {[%emt 0:02:05]} Nh5 {[%emt 0:00:07] [#] Strongly threatening ...Ng3+.} 26. Kh2 {[%emt 0:00:01]} Ng3 {[%emt 0:00:05] Threatens to win with ...Nxf1+.} (26... Bf8 $5 {[%cal Re7b4]}) 27. Bd3 {[%emt 0:00:06]} Bf8 {[%emt 0:01:20]} 28. Nb2 {[%emt 0:01:43]} (28. Nxe5 $2 {perishes.} Qd6 29. Bxg5 Qxe5 $19) 28... f6 {[%emt 0:00:49]} (28... Qxb4 {seems wilder.} 29. Bxg5 Rxc1 30. Qxc1 Rc8) 29. Rxc8 {[%emt 0:00:03]} Rxc8 {[%emt 0:00:01]} 30. Bd2 {[%emt 0:00:01]} Qd7 {[%emt 0:00:12]} 31. Rc1 {[%emt 0:00:11]} Rd8 {[%emt 0:01:20]} 32. Qc2 {[%emt 0:00:30]} Bf7 {[%emt 0:01:03][%cal Og3e2]} 33. Be1 {[%emt 0:00:34]} Qd4 {[%emt 0:00:11]} 34. Bc3 {[%emt 0:00:06]} Qd7 {[%emt 0:00:56]} 35. Bb5 {[%emt 0:00:11]} Qc7 {[%emt 0:00:06]} 36. Qb1 {[%emt 0:00:14]} (36. Be1 $5 {[%cal Rc2c7]} Qxc2 37. Rxc2 $14) 36... Qe7 {[%emt 0:00:11]} 37. Bc4 {[%emt 0:00:09]} (37. Rc2 $11 {remains equal.}) 37... Bxc4 $17 {[%emt 0:00:02]} 38. Nxc4 {[%emt 0:00:01][%cal Bb2c4,Bc4e3,Be3g4][%mdl 32]} Qe6 {[%emt 0:00:01]} (38... Ne2 $17 39. Ne3 Nxc1 40. Qxc1 Qc7) 39. Ne3 $14 {[%emt 0:00:05]} Nh5 {[%emt 0:00:12]} (39... Ne2 $11) 40. Rc2 $16 {[%emt 0:00:25]} Nf4 {[%emt 0:00:02]} 41. Bd2 {[%emt 0:00:05]} Qd7 {[%emt 0:00:05]} 42. Ng4 {[%emt 0:00:05]} Bg7 {[%emt 0:00:05] This costs Black the game.} (42... Kg7 $1 $14) 43. Bxf4 $18 {[%emt 0:00:02]} gxf4 {[%emt 0:00:13]} 44. b5 {[%emt 0:00:06]} Qd3 $2 {[%emt 0:00:22]} (44... Kh7 45. Qa2 Kg6) 45. Qa2+ {[%emt 0:00:04]} Kh8 {[%emt 0:00:01]} 46. Rc6 {[%emt 0:00:08] And now Qf7 would win.} Qd1 {[%emt 0:00:04]} 47. Qf2 {[%emt 0:00:24] Repels Qe1} ({Not} 47. Nxf6 Qe1 48. Nd5 (48. Nh5 $2 {leads to mate.} Qg3+ {[%mdl 64] Back Rank} 49. Nxg3 hxg3+ 50. Kh1 Rd1#) 48... Qg3+ 49. Kh1 Qe1+ 50. Kh2 Qg3+ 51. Kh1 Qe1+ 52. Kh2 $11) 47... Kg8 {[%emt 0:00:07]} 48. Nxf6+ {[%emt 0:00:06]} Kf7 {[%emt 0:00:03]} 49. Nd5 {[%emt 0:00:01]} Rxd5 {[%emt 0:00:02]} 50. exd5 {[%emt 0:00:02]} e4 {[%emt 0:00:00]} 51. Rc7+ {[%emt 0:00:05] White mates.} Kg8 {[%emt 0:00:02]} 52. Qxh4 {[%emt 0:00:03]} Qxd5 {[%emt 0:00:03]} 53. Qg4 {[%emt 0:00:06] Weighted Error Value: White=0.21 (precise) /Black=0.43} 1-0